bitfinex-derivatives/quotes_SOLF0:USTF0_20250228
["timestamp","ask_amount","ask_price","bid_price","bid_amount"]
[1740718832106,18.27,128.07,127.97,0.05704056]
[1740718832407,0.05327417,128.03,127.94,8.2197]
[1740718832606,0.05327417,128.03,128.02,7.8187]
[1740718832807,18.27,128.07,127.95,4.0294]
[1740718833010,3.161e-05,128.04,128.03,7.8183]
[1740718833206,18.27,128.07,128.03,7.8183]
[1740718833407,16.18,128.09,128.02,12.209]
[1740718833607,212.32,128.22,128.02,207.209]
[1740718833806,8.2328,128.19,128.02,12.209]
[1740718834103,8.2328,128.19,128.09,7.8145]
[1740718834311,8.2328,128.19,128.05,14.6]
[1740718834705,0.05756917,128.15,128.13,0.0518193]
[1740718834907,0.05756917,128.15,128.05,14.6]
[1740718835109,7.8124,128.13,128.03,7.8182]
[1740718835310,4.0734,128.12,128.02,12.209]
[1740718835717,11.8863,128.12,128.03,7.8179]
[1740718835915,4.0734,128.12,128.02,12.209]
[1740718836213,4.0734,128.12,128.06,0.05194509]
[1740718836214,0.05499355,128.09,128.06,0.05194509]
[1740718836712,7.8155,128.08,128.06,0.05194509]
[1740718836904,0.05499355,128.09,128.06,0.05194509]
[1740718837520,0.05499355,128.09,128.0,83.05558525]
[1740718837708,0.05499355,128.09,127.98,0.6372]
[1740718837908,4.0734,128.12,127.98,0.6372]
[1740718838313,7.8151,128.09,128.0,7.8199]
[1740718838513,4.0734,128.12,127.98,0.6372]
[1740718838714,0.05718433,128.06,128.03,0.04998966]
[1740718839013,4.0734,128.12,127.99,2.4811]
[1740718839315,0.05105861,128.06,128.03,0.05135045]
[1740718839614,4.0734,128.12,128.0,1.15]
[1740718840116,3.8285,128.14,128.0,1.15]
[1740718840516,11.6402,128.14,128.04,7.8175]
[1740718840816,0.05542083,128.08,128.06,0.05271016]
[1740718841017,11.6402,128.14,128.0,1.15]
[1740718841311,0.04973217,128.08,128.06,0.05077859]
[1740718841513,23.42,128.08,127.95,2.4811]
[1740718841718,7.8178,128.04,127.95,2.4811]
[1740718841917,8.0333,128.07,127.95,2.4811]
[1740718841918,4.0993,128.03,128.0,83.05558525]
[1740718842617,4.1501535,128.03,128.0,83.11287839]
[1740718844211,0.0508535,128.03,128.0,83.11287839]
[1740718844621,3.9571,128.09,128.0,83.11287839]
[1740718844823,3.9571,128.09,128.0,83.05558525]
[1740718845223,3.9571,128.09,127.96,1.0921]
[1740718845814,7.9628,128.09,127.96,1.0921]
[1740718846021,0.05158271,128.04,128.01,0.05967675]
[1740718846421,0.05158271,128.04,127.96,1.0921]
[1740718846621,0.05158271,128.04,128.01,0.05383462]
[1740718846821,0.05856959,128.04,128.01,0.05383462]
[1740718848124,7.8189,128.02,128.01,0.05383462]
[1740718848523,8.1014,128.03,128.01,0.05383462]
[1740718849318,15.9199,128.03,128.01,0.05383462]
[1740718849521,8.1014,128.03,128.01,0.05383462]
[1740718849717,7.8189,128.02,128.01,0.05383462]
[1740718850216,8.1014,128.03,128.01,0.05383462]
[1740718850417,0.05856959,128.04,128.01,0.05383462]
[1740718850820,0.05856959,128.04,128.03,7.8183]
[1740718851022,0.05856959,128.04,128.01,0.05383462]
[1740718851423,0.05856959,128.04,128.02,7.8188]
[1740718851923,0.05856959,128.04,128.01,0.05383462]
[1740718852123,0.05856959,128.04,128.03,7.8183]
[1740718852523,6.959e-05,128.04,128.03,7.8183]
[1740718852729,22.2526,128.16,128.01,0.05383462]
[1740718852929,7.6726,128.16,128.01,0.05383462]
[1740718853126,7.8117,128.14,128.09,7.8141]
[1740718853331,7.6726,128.16,127.97,14.58]
[1740718853524,7.6726,128.16,127.98,1.43605245]
[1740718853724,7.6726,128.16,127.99,14.41896934]
[1740718853929,6.68e-06,128.08,128.07,7.8158]
[1740718854223,7.6726,128.16,127.99,209.41896934]
[1740718854224,7.6726,128.16,127.99,195.0]
[1740718854421,7.6726,128.16,128.0,1.43575535]
[1740718854621,7.6726,128.16,128.0,14.41896934]
[1740718854824,15.483,128.16,127.99,195.0]
[1740718855025,0.05473628,128.09,128.07,0.05980159]
[1740718855225,3.628e-05,128.09,128.07,0.05980159]
[1740718859238,3.628e-05,128.09,128.0,83.05558525]
[1740718859430,7.8135,128.11,128.01,7.8195]
[1740718859635,14.58,128.15,128.01,7.8195]
[1740718860236,14.58,128.15,128.07,0.05668945]
[1740718860237,0.05414912,128.09,128.07,0.05668945]
[1740718860534,234.43,128.15,128.02,7.8188]
[1740718860735,234.43,128.15,128.07,0.05832205]
[1740718860736,0.05976406,128.09,128.07,0.05832205]
[1740718860937,44.43,128.15,127.98,84.14458525]
[1740718861141,0.05208267,128.09,128.07,0.05630675]
[1740718861538,190.0,128.14,127.98,84.14458525]
[1740718861733,7.8153,128.08,127.99,7.8203]
[1740718861938,7.7319,128.07,128.05,0.05218535]
[1740718862234,0.05619114,128.05,127.99,83.05558525]
[1740718862639,0.05619114,128.05,128.01,0.06005025]
[1740718864341,29.85,128.15,128.01,23.50005025]
[1740718864545,29.85,128.15,127.98,115.4178694]
[1740718864939,37.6613,128.15,128.07,7.8157]
[1740718865343,37.661,128.15,128.08,7.8149]
[1740718865544,0.05196912,128.12,128.1,0.05030653]
[1740718865942,7.8134,128.11,128.1,0.05030653]
[1740718866744,0.05196912,128.12,128.1,0.05030653]
[1740718867135,7.8134,128.11,128.1,0.05030653]
[1740718867337,0.05196912,128.12,127.99,99.89352146]
[1740718867744,29.85,128.15,128.03,7.818]
[1740718867946,29.85,128.15,127.99,99.89352146]
[1740718868443,0.05269176,128.08,128.07,7.8153]
[1740718868639,7.812,128.14,128.06,0.05777928]
[1740718868847,7.812,128.14,128.01,1.43541927]
[1740718869145,29.85,128.15,128.01,196.43541927]
[1740718869345,29.85,128.15,128.01,195.0]
[1740718869545,29.85,128.15,128.08,7.8148]
[1740718869948,0.055835,128.13,128.1,0.04919368]
[1740718870346,29.85,128.15,128.01,195.0]
[1740718870644,7.8126,128.13,128.01,195.0]
[1740718870848,29.85,128.15,128.01,195.0]
[1740718871050,0.05803903,128.09,128.07,0.05273999]
[1740718871347,29.85,128.15,128.01,195.0]
[1740718871645,0.05094996,128.09,128.08,7.8152]
[1740718872147,29.85,128.15,128.09,7.8144]
[1740718872148,0.05417447,128.1,128.09,7.8144]
[1740718872547,29.85,128.15,128.0,85.31352146]
[1740718872750,29.85,128.15,128.08,0.0505902]
[1740718872945,7.027e-05,128.09,128.08,0.0505902]
[1740718873142,29.85,128.15,128.08,0.0505902]
[1740718873649,29.85,128.15,128.13,7.8118]
[1740718873849,29.85,128.15,128.08,2.5300902]
[1740718874046,29.90032736,128.15,128.13,0.05165785]
[1740718874242,29.90032736,128.15,128.14,7.8116]
[1740718874444,29.90032736,128.15,128.08,2.4795]
[1740718874642,29.90032736,128.15,128.13,0.05122226]
[1740718874846,29.85,128.15,128.07,1.0944]
[1740718875044,29.90627359,128.15,128.04,85.31352146]
[1740718875253,12.0965,128.14,128.04,85.31352146]
[1740718875442,7.8135,128.11,128.04,85.31352146]
[1740718875648,12.0965,128.14,128.04,85.31352146]
[1740718876052,7.8152,128.08,128.04,85.31352146]
[1740718876350,202.0965,128.14,128.03,127.9702822]
[1740718876351,8.0442,128.07,128.03,127.9702822]
[1740718876650,8.0442,128.07,128.05,0.0584959]
[1740718876840,8.0442,128.07,127.98,127.9702822]
[1740718877043,0.05229523,128.06,127.98,127.9702822]
[1740718877442,8.0442,128.07,127.98,127.9702822]
[1740718878049,0.05465353,128.04,128.01,0.05352556]
[1740718878256,0.05465353,128.04,127.98,127.9702822]
[1740718878453,7.8197,128.01,127.98,127.9702822]
[1740718878953,7.8188,128.03,127.98,127.9702822]
[1740718879153,190.0,128.06,127.98,127.9702822]
[1740718879455,7.86917014,128.02,127.99,0.05954993]
[1740718879952,7.86917014,128.02,127.94,7.8232]
[1740718880155,0.04977014,128.02,127.99,0.05177229]
[1740718880449,0.04977014,128.02,127.91,4.1709]
[1740718880450,190.0,128.06,127.97,0.05356626]
[1740718880652,0.05682634,127.99,127.97,0.05356626]
[1740718880853,7.8196,128.01,127.93,7.8243]
[1740718881054,7.8196,128.01,127.97,0.04971495]
[1740718881255,7.8198,128.01,127.97,0.04971495]
[1740718881450,190.0,128.05,127.97,0.04971495]
[1740718881652,0.05611376,128.0,127.97,0.04971495]
[1740718881855,7.87631376,128.0,127.94,7.8238]
[1740718882053,193.9621,128.04,127.97,0.05413742]
[1740718882259,0.04976137,128.0,127.97,0.05413742]
[1740718883749,23.48976137,128.0,127.87,114.3981356]
[1740718883948,7.8231,127.96,127.91,7.8255]
[1740718884346,7.8168,127.99,127.88,8.0215]
[1740718884551,197.8184,128.03,127.98,7.8212]
[1740718884858,2.503e-05,127.95,127.92,0.05763049]
[1740718885054,197.8187,128.03,127.97,7.8215]
[1740718885254,190.0,128.03,127.97,7.8215]
[1740718885557,190.0,128.03,127.89,4.0378]
[1740718886156,0.05719794,127.97,127.95,0.05604687]
[1740718886656,190.0,128.03,127.95,0.05580673]
[1740718887058,0.05211731,127.97,127.89,4.0378]
[1740718887262,190.0,128.03,127.89,4.0378]
[1740718887450,0.05666563,127.94,127.92,0.05310054]
[1740718887649,7.8201,128.0,127.95,7.8231]
[1740718887856,0.05079425,127.94,127.92,0.05896415]
[1740718888258,190.0,128.03,127.89,4.0378]
[1740718888460,0.05796918,127.94,127.92,0.05246489]
[1740718888756,190.0,128.03,127.89,4.0378]
[1740718888959,4.512e-05,127.94,127.92,0.05307031]
[1740718889159,3.8913,128.02,127.89,4.0378]
[1740718889355,7.8199,128.01,127.96,7.8221]
[1740718889760,3.8913,128.02,127.96,7.8221]
[1740718890255,0.05554647,128.0,127.98,0.05156048]
[1740718890662,0.05554647,128.0,127.98,7.87236048]
[1740718890963,0.05554647,128.0,127.98,0.05156048]
[1740718892560,4.647e-05,128.0,127.99,7.8207]
[1740718893966,4.647e-05,128.0,127.99,15.7476]
[1740718894655,4.647e-05,128.0,127.98,0.05156048]
[1740718898763,4.647e-05,128.0,127.99,7.8207]
[1740718899067,4.647e-05,128.0,127.99,19.8644]
[1740718900262,4.647e-05,128.0,127.98,0.05156048]
[1740718905269,4.647e-05,128.0,127.99,7.8207]
[1740718905469,4.647e-05,128.0,127.99,19.3258]
[1740718905665,180.03344647,128.0,127.99,19.3258]
[1740718905860,30.07101628,128.0,127.99,42.7658]
[1740718906066,1.628e-05,128.0,127.99,42.7658]
[1740718906772,4.0883,128.11,127.99,34.9451]
[1740718907071,4.0883,128.11,128.04,7.8175]
[1740718907277,0.05746709,128.06,128.04,7.8175]
[1740718907463,4.0883,128.11,128.04,7.87374751]
[1740718907664,0.05879364,128.06,128.05,7.8171]
[1740718907868,3.8008,128.12,128.04,0.05624751]
[1740718908072,3.8008,128.12,127.99,3.9059]
[1740718908269,0.05387507,128.06,128.01,7.8194]
[1740718908472,0.05387507,128.06,128.04,0.0509614]
[1740718910775,0.05387507,128.06,128.04,7.8684614]
[1740718911372,0.05387507,128.06,128.04,0.0509614]
[1740718911571,7.507e-05,128.06,128.05,7.8171]
[1740718911971,7.507e-05,128.06,128.05,31.2371]
[1740718913678,7.507e-05,128.06,128.05,7.8171]
[1740718913879,7.507e-05,128.06,128.05,31.2371]
[1740718914575,29.85,128.15,128.14,7.8116]
[1740718914775,17.759,128.15,128.14,7.8116]
[1740718914981,86.3492398,128.18,128.17,7.8097]
[1740718915886,86.3492398,128.18,128.17,31.2097]
[1740718916290,13.2420398,128.18,128.17,31.2097]
[1740718916583,3.08,128.27,128.17,23.4]
[1740718916788,3.08,128.27,128.17,1.56042755]
[1740718916991,3.08,128.27,128.21,7.807]
[1740718917690,0.059109,128.25,128.23,0.0592055]
[1740718922290,0.059109,128.25,128.17,1.56042755]
[1740718922291,0.059109,128.25,128.14,212.48]
[1740718922792,3.9287,128.26,128.14,212.48]
[1740718923493,0.05299623,128.21,128.19,0.05148554]
[1740718923894,3.9287,128.26,128.19,0.05148554]
[1740718924188,0.05675396,128.21,128.14,212.48]
[1740718924388,3.9287,128.26,128.08,14.52]
[1740718924594,3.9287,128.26,128.06,85.75601229]
[1740718924788,3.9287,128.26,128.06,100.27601229]
[1740718924985,7.8116,128.14,128.06,85.75601229]
[1740718925389,14.52,128.24,128.06,85.75601229]
[1740718925390,7.8128,128.12,128.06,85.75601229]
[1740718925590,0.05358342,128.11,128.09,0.05804546]
[1740718926095,18.4853,128.24,128.06,93.57241229]
[1740718926294,0.05223267,128.11,128.09,0.05431542]
[1740718926593,18.4853,128.24,128.05,14.52]
[1740718926790,7.8111,128.15,128.05,14.52]
[1740718926992,0.05776125,128.1,128.09,0.05039796]
[1740718927398,190.0,128.23,128.09,0.05039796]
[1740718927594,0.05434017,128.11,128.09,0.05039796]
[1740718927792,0.05434017,128.11,128.06,7.8164]
[1740718927993,18.4853,128.24,128.06,7.8164]
[1740718928195,18.4853,128.24,128.09,0.04948884]
[1740718928497,0.05732018,128.1,128.04,212.4024]
[1740718928796,18.4853,128.24,128.04,212.4024]
[1740718928797,7.8104,128.16,128.15,0.05971343]
[1740718928996,18.4853,128.24,128.04,213.96441187]
[1740718929195,2.12e-06,128.08,128.04,213.96441187]
[1740718929395,7.8088,128.19,128.04,237.38441187]
[1740718929691,4.0174,128.23,128.04,213.96441187]
[1740718929996,4.0174,128.23,128.05,2.99716888]
[1740718930193,4.0174,128.23,128.06,1.435279]
[1740718930394,0.05743163,128.15,128.13,0.05705787]
[1740718930791,11.8236,128.23,128.07,1.56164597]
[1740718930997,0.05164096,128.15,128.13,0.05250936]
[1740718931396,4.0174,128.23,128.11,14.52]
[1740718931597,0.05366122,128.15,128.13,0.05008602]
[1740718931897,11.8236,128.23,128.15,7.8107]
[1740718932095,0.05502903,128.15,128.13,0.05020757]
[1740718932596,7.86990401,128.15,128.13,0.04942522]
[1740718932798,0.05850401,128.15,128.13,0.04942522]
[1740718933298,0.05850401,128.15,128.07,1.56164597]
[1740718933493,7.86950401,128.15,128.07,1.56164597]
[1740718933797,3.8151,128.14,128.07,1.56164597]
[1740718934094,7.7878,128.14,128.07,1.56164597]
[1740718934300,15.5995,128.14,128.07,1.56164597]
[1740718934495,7.7878,128.14,128.09,0.05120024]
[1740718934798,0.05499939,128.12,128.07,1.56164597]
[1740718935797,0.05499939,128.12,128.08,0.05980107]
[1740718939200,190.0,128.25,128.08,0.05980107]
[1740718939201,7.8063,128.23,128.08,0.05980107]
[1740718939399,3.8867,128.22,128.08,0.05980107]
[1740718939599,3.8867,128.22,128.07,16.08164597]
[1740718940498,0.05040272,128.16,128.13,0.05985709]
[1740718940704,0.05040272,128.16,128.07,16.08164597]
[1740718941005,190.0,128.21,128.07,16.08164597]
[1740718941704,190.0,128.21,128.09,7.8145]
[1740718942005,0.05913973,128.15,128.13,0.05094378]
[1740718942206,0.05913973,128.15,128.07,9.37704597]
[1740718942401,14.52,128.2,128.07,1.56164597]
[1740718942900,1.4204925,128.19,128.07,1.56164597]
[1740718943405,0.05342093,128.14,128.12,0.0553747]
[1740718943606,0.05342093,128.14,128.07,1.56164597]
[1740718943809,7.8127,128.13,128.07,9.37704597]
[1740718944007,7.9876,128.17,128.07,1.56164597]
[1740718944198,7.8105,128.16,128.11,7.8134]
[1740718944397,7.9876,128.17,128.07,1.56164597]
[1740718944802,7.86668302,128.13,128.11,0.05088326]
[1740718945103,0.05408302,128.13,128.07,1.56164597]
[1740718945304,0.05408302,128.13,128.07,1.91494597]
[1740718945503,8.302e-05,128.13,128.07,1.91494597]
[1740718945907,8.302e-05,128.13,128.12,7.8128]
[1740718946308,3.974,128.26,128.12,23.42]
[1740718946507,3.974,128.26,128.08,212.38]
[1740718946803,3.974,128.26,128.09,1.43480697]
[1740718947404,3.06,128.25,128.09,1.43480697]
[1740718947599,3.06,128.25,128.16,0.05121718]
[1740718947800,3.06,128.25,128.17,14.5]
[1740718948105,3.06,128.25,128.18,0.1567]
[1740718948408,0.05288248,128.22,128.2,0.05638039]
[1740718948807,8.248e-05,128.22,128.21,7.8073]
[1740718952506,8.248e-05,128.22,128.2,0.05638039]
[1740718953207,8.248e-05,128.22,128.21,7.8073]
[1740718953715,8.248e-05,128.22,128.2,0.05638039]
[1740718954105,8.248e-05,128.22,128.21,7.8073]
[1740718955313,8.248e-05,128.22,128.2,7.86388039]
[1740718955514,8.248e-05,128.22,128.2,0.05638039]
[1740718955715,8.248e-05,128.22,128.2,7.86428039]
[1740718956110,8.248e-05,128.22,128.2,0.05638039]
[1740718957313,8.248e-05,128.22,128.21,7.8073]
[1740718957714,8.248e-05,128.22,128.2,0.05638039]
[1740718957916,8.248e-05,128.22,128.14,85.75601229]
[1740718958208,7.8072,128.22,128.16,7.8103]
[1740718958613,8.1933,128.24,128.14,85.75601229]
[1740718959213,0.05810692,128.2,128.18,0.05023423]
[1740718959519,0.05810692,128.2,128.14,73.23861229]
[1740718960409,7.86650692,128.2,128.14,73.23861229]
[1740718960610,0.05810692,128.2,128.16,0.05184204]
[1740718961413,0.05810692,128.2,128.19,7.8085]
[1740718962614,3.06,128.25,128.22,7.8066]
[1740718962812,3.06,128.25,128.15,3.8651]
[1740718963214,3.06,128.25,128.23,7.8055]
[1740718963423,3.06,128.25,128.15,3.8651]
[1740718963622,3.06,128.25,128.16,1.56054931]
[1740718963819,3.16e-05,128.21,128.19,0.05046871]
[1740718964222,3.16e-05,128.21,128.19,23.45046871]
[1740718964417,3.16e-05,128.21,128.2,7.8074]
[1740718964716,190.0,128.39,128.2,407.3994]
[1740718964922,3.8903,128.38,128.21,1.55994072]
[1740718965222,7.798,128.37,128.22,14.5]
[1740718965420,3.8903,128.38,128.23,1.55969741]
[1740718965823,0.05673836,128.32,128.29,0.05440101]
[1740718966220,3.8903,128.38,128.23,1.55969741]
[1740718966415,0.05749264,128.32,128.29,0.04982232]
[1740718966822,3.8903,128.38,128.23,1.55969741]
[1740718967019,3.8903,128.38,128.29,0.05323026]
[1740718967020,0.05927118,128.32,128.29,0.05323026]
[1740718967221,7.7997,128.34,128.23,1.55969741]
[1740718967524,0.05517441,128.32,128.29,0.05726427]
[1740718970127,0.05517441,128.32,128.31,7.8012]
[1740718970324,0.05517441,128.32,128.29,0.05726427]
[1740718970524,3.8887,128.39,128.3,14.48]
[1740718970727,3.8887,128.39,128.31,4.0877]
[1740718970920,7.7382,128.46,128.31,4.0877]
[1740718971230,3.9416,128.45,128.31,4.0877]
[1740718971628,0.05450094,128.39,128.37,0.05098025]
[1740718972026,3.9416,128.45,128.31,4.0877]
[1740718972225,0.05721087,128.39,128.37,0.05619991]
[1740718972426,3.9416,128.45,128.32,7.8005]
[1740718972623,3.9416,128.45,128.37,0.05519529]
[1740718972929,3.9416,128.45,128.31,4.0877]
[1740718973129,0.05518269,128.42,128.4,0.05544149]
[1740718973323,3.9416,128.45,128.31,4.0877]
[1740718973727,3.9416,128.45,128.4,0.05005282]
[1740718974028,0.05463402,128.39,128.31,4.0877]
[1740718974220,7.7968,128.39,128.33,7.7999]
[1740718974622,3.9416,128.45,128.35,0.05093936]
[1740718974823,0.05535754,128.37,128.3,14.48]
[1740718975028,190.0,128.44,128.3,14.48]
[1740718975230,7.7959,128.4,128.34,7.7993]
[1740718975424,3.9416,128.45,128.3,14.48]
[1740718975627,3.9416,128.45,128.31,4.1564]
[1740718975828,7.7935,128.44,128.31,4.1564]
[1740718976028,0.05852102,128.39,128.37,0.05536334]
[1740718976429,3.9416,128.45,128.32,5.64640349]
[1740718976631,0.05437026,128.39,128.37,0.05596645]
[1740718978532,0.05437026,128.39,128.38,7.797]
[1740718979827,0.05437026,128.39,128.37,0.05596645]
[1740718980538,0.05437026,128.39,128.38,7.797]
[1740718980934,0.05437026,128.39,128.37,0.05596645]
[1740718981235,0.05437026,128.39,128.37,7.85316645]
[1740718981534,0.05437026,128.39,128.37,0.05596645]
[1740718981834,0.05437026,128.39,128.38,7.797]
[1740718982132,7.026e-05,128.39,128.38,7.797]
[1740718982734,7.026e-05,128.39,128.37,0.05596645]
[1740718984540,7.026e-05,128.39,128.38,7.797]
[1740718985236,7.026e-05,128.39,128.37,0.05596645]
[1740718986035,7.79677026,128.39,128.37,0.05596645]
[1740718986734,7.026e-05,128.39,128.27,18.5176]
[1740718986940,3.7981,128.38,128.27,3.8999]
[1740718987140,4.0193,128.37,128.27,3.8999]
[1740718987541,7.7994,128.35,128.3,7.8016]
[1740718987839,0.05993142,128.34,128.31,0.05513305]
[1740718988039,7.8004,128.33,128.31,0.05513305]
[1740718988240,4.0193,128.37,128.31,0.05513305]
[1740718988431,0.05558783,128.33,128.31,0.05513305]
[1740718988635,0.05558783,128.33,128.25,84.34335606]
[1740718989035,190.0,128.36,128.25,84.34335606]
[1740718989442,190.0,128.35,128.25,84.34335606]
[1740718989643,190.0,128.34,128.25,65.55525606]
[1740718989837,0.0549521,128.31,128.29,7.965e-05]
[1740718990045,190.0,128.3,128.25,28.33073571]
[1740718990241,190.0,128.29,128.19,127.9702822]
[1740718990546,190.0,128.28,128.19,127.9702822]
[1740718990838,190.0,128.27,128.19,127.9702822]
[1740718991247,190.0,128.27,128.22,0.05919196]
[1740718991248,0.05952867,128.24,128.22,0.05919196]
[1740718991444,7.8061,128.23,128.19,127.9702822]
[1740718991645,0.05952867,128.24,128.19,127.9702822]
[1740718992044,0.05952867,128.24,128.19,132.2958822]
[1740718992241,14.46,128.36,128.19,132.2958822]
[1740718992242,190.0,128.35,128.19,132.2958822]
[1740718992442,7.7996,128.34,128.27,7.8032]
[1740718992639,7.7996,128.34,128.23,14.46]
[1740718992843,211.96,128.39,128.23,14.46]
[1740718993445,14.46,128.42,128.23,14.46]
[1740718993647,0.0541443,128.32,128.3,0.05970844]
[1740718993841,0.0541443,128.32,128.31,7.8012]
[1740718994043,0.0541443,128.32,128.23,14.46]
[1740718994044,204.46,128.42,128.3,0.05551524]
[1740718994243,0.05855684,128.32,128.3,0.05551524]
[1740718994443,7.7959,128.4,128.32,7.8001]
[1740718994748,222.11689857,128.43,128.3,0.0499614]
[1740718994946,0.05864545,128.37,128.23,14.46]
[1740718995147,222.11689857,128.43,128.35,0.0600366]
[1740718995348,222.11689857,128.43,128.23,14.46]
[1740718995549,4.004e-05,128.31,128.3,7.8018]
[1740718995744,222.11689857,128.43,128.23,14.46]
[1740718995944,190.0,128.42,128.23,14.46]
[1740718996144,190.0,128.42,128.28,7.8029]
[1740718996345,190.0,128.42,128.23,14.46]
[1740718996346,190.0,128.41,128.23,14.46]
[1740718996649,3.8893,128.45,128.23,14.46]
[1740718996850,0.05563526,128.33,128.32,7.8002]
[1740718997049,3.8893,128.45,128.31,14.46]
[1740718997358,121.45069393,128.69,128.32,7.7102]
[1740718997359,244.15689857,128.57,128.32,7.7102]
[1740718997655,3.8893,128.54,128.32,11.6857]
[1740718997854,7.7892,128.51,128.32,11.6857]
[1740718998050,7.7892,128.51,128.33,1.42924466]
[1740718998251,7.7892,128.51,128.34,212.04]
[1740718998443,0.05001936,128.43,128.41,0.05579033]
[1740718998850,3.8893,128.54,128.4,11.5574]
[1740719000149,0.05295048,128.48,128.47,7.7914]
[1740719000345,46.57689857,128.63,128.46,0.05277917]
[1740719000546,7.7863,128.56,128.49,7.7901]
[1740719000953,3.844,128.62,128.4,206.5574]
[1740719001148,3.844,128.62,128.5,7.7896]
[1740719001553,0.05215504,128.57,128.55,0.04975619]
[1740719001959,3.844,128.62,128.48,3.7952]
[1740719002152,0.0548684,128.57,128.55,0.04921388]
[1740719002454,7.7854,128.58,128.55,0.04921388]
[1740719002752,3.844,128.62,128.55,0.04921388]
[1740719002753,5.97e-06,128.57,128.55,0.04921388]
[1740719003054,3.9538,128.68,128.49,3.8482]
[1740719003446,3.9538,128.68,128.58,7.7846]
[1740719004065,0.05188128,128.64,128.62,0.05556177]
[1740719004253,3.9538,128.68,128.56,7.7856]
[1740719004449,7.7807,128.65,128.56,7.7856]
[1740719004652,0.04967738,128.63,128.61,0.05439237]
[1740719004853,14.44,128.73,128.57,4.1539]
[1740719005052,0.05690838,128.61,128.57,4.1539]
[1740719005353,0.05690838,128.61,128.58,0.05943003]
[1740719005748,0.05690838,128.61,128.58,7.84383003]
[1740719006052,4.1429,128.74,128.58,3.87703003]
[1740719006451,4.1429,128.74,128.58,7.9474]
[1740719006859,0.1079,128.73,128.58,7.9474]
[1740719007260,0.04899768,128.67,128.64,0.05582774]
[1740719007557,7.7794,128.68,128.59,7.7837]
[1740719007752,0.05761533,128.67,128.64,0.05940347]
[1740719007954,7.7777,128.7,128.64,0.05940347]
[1740719008155,190.1079,128.73,128.64,0.05940347]
[1740719008351,0.04904907,128.68,128.58,7.9474]
[1740719008558,7.778,128.7,128.67,0.05036387]
[1740719008756,190.1079,128.73,128.58,7.9474]
[1740719008961,0.05790602,128.7,128.67,0.05684935]
[1740719009160,7.7788,128.69,128.58,7.9474]
[1740719009458,190.1079,128.73,128.67,0.05337431]
[1740719009658,190.1079,128.73,128.58,9.50285185]
[1740719009858,0.05272683,128.65,128.58,9.50285185]
[1740719010055,0.05272683,128.65,128.64,0.05080174]
[1740719010359,0.05272683,128.65,128.58,9.50285185]
[1740719010555,0.05272683,128.65,128.63,0.05681766]
[1740719010749,0.05272683,128.65,128.58,9.50285185]
[1740719010953,0.05272683,128.65,128.63,0.05371527]
[1740719011154,0.05272683,128.65,128.58,5.37305185]
[1740719011350,7.7825,128.62,128.57,4.1539]
[1740719011555,0.05272683,128.65,128.57,4.1539]
[1740719011753,1.41457485,128.72,128.58,0.05263123]
[1740719011958,0.05441268,128.62,128.58,0.05263123]
[1740719012160,1.41457485,128.72,128.57,4.1539]
[1740719012360,0.05216088,128.61,128.59,0.05605246]
[1740719012562,0.05216088,128.61,128.57,4.1539]
[1740719012757,1.41457485,128.72,128.57,4.1539]
[1740719012953,0.05038844,128.6,128.59,0.05402876]
[1740719013160,0.05038844,128.6,128.59,7.7837]
[1740719013462,0.1079,128.73,128.58,0.05495085]
[1740719013661,0.05028425,128.61,128.58,7.83925085]
[1740719013962,190.0,128.71,128.58,0.0558855]
[1740719014158,0.1079,128.73,128.58,0.0558855]
[1740719014159,0.05816358,128.61,128.58,0.0558855]
[1740719014365,0.1079,128.73,128.57,4.1539]
[1740719014763,7.7786,128.69,128.57,4.1539]
[1740719015158,7.7789,128.68,128.57,4.1539]
[1740719015363,0.1079,128.73,128.57,5.70947283]
[1740719015560,0.04963993,128.64,128.61,0.05724289]
[1740719015761,7.7769,128.72,128.65,7.7804]
[1740719015960,4.1429,128.74,128.65,7.7804]
[1740719016163,4.1429,128.74,128.58,1.55545185]
[1740719016665,0.0999,128.81,128.59,211.64]
[1740719016854,0.0999,128.81,128.6,1.55520995]
[1740719017054,0.05190559,128.71,128.69,7.83168505]